[Event "*** Titled Tuesday Blitz"]
[Site "Chess.com"]
[Date "2020.04.28"]
[Round "1"]
[White "Jospem"]
[Black "SARGISMV"]
[Result "0-1"]
[WhiteElo "2834"]
[BlackElo "2451"]
[TimeControl "180+1"]
[EndTime "10:07:36 PDT"]
[Termination "SARGISMV won on time"]

1. c4 {[%clk 0:02:59.7]} 1... Nf6 {[%clk 0:02:59.4]} 2. Nf3 {[%clk 0:03:00.1]}
2... c5 {[%clk 0:02:59.3]} 3. g3 {[%clk 0:03:00.6]} 3... Nc6 {[%clk 0:02:59.6]}
4. Bg2 {[%clk 0:03:01.5]} 4... g6 {[%clk 0:02:59.8]} 5. O-O {[%clk 0:03:02]}
5... Bg7 {[%clk 0:03:00.2]} 6. Nc3 {[%clk 0:03:02.5]} 6... O-O {[%clk
0:03:00.7]} 7. d4 {[%clk 0:03:03.1]} 7... cxd4 {[%clk 0:03:01.1]} 8. Nxd4 {[%clk
0:03:04]} 8... Ng4 {[%clk 0:03:00.7]} 9. e3 {[%clk 0:03:03.4]} 9... d6 {[%clk
0:03:00.4]} 10. b3 {[%clk 0:02:53]} 10... Nxd4 {[%clk 0:02:47.2]} 11. exd4
{[%clk 0:02:22.9]} 11... Nh6 {[%clk 0:02:46.5]} 12. Bxh6 {[%clk 0:01:58.1]}
12... Bxh6 {[%clk 0:02:45.3]} 13. b4 {[%clk 0:01:58.6]} 13... Rb8 {[%clk
0:02:21.4]} 14. a4 {[%clk 0:01:55.7]} 14... a5 {[%clk 0:02:17.1]} 15. b5 {[%clk
0:01:51.6]} 15... Bg7 {[%clk 0:02:04.4]} 16. Qd2 {[%clk 0:01:30.2]} 16... Be6
{[%clk 0:01:53.4]} 17. Nd5 {[%clk 0:01:14]} 17... Bxd5 {[%clk 0:01:33.3]} 18.
Bxd5 {[%clk 0:01:03.4]} 18... Qb6 {[%clk 0:01:31.3]} 19. Rfd1 {[%clk 0:01:03]}
19... Rbc8 {[%clk 0:01:25.8]} 20. Rac1 {[%clk 0:01:03.1]} 20... e6 {[%clk
0:01:05.4]} 21. Bf3 {[%clk 0:01:00.5]} 21... Rc7 {[%clk 0:01:05.6]} 22. c5
{[%clk 0:00:59.6]} 22... dxc5 {[%clk 0:00:59.8]} 23. dxc5 {[%clk 0:01:00.5]}
23... Rxc5 {[%clk 0:01:00.2]} 24. Rxc5 {[%clk 0:01:01.4]} 24... Qxc5 {[%clk
0:01:01]} 25. Bxb7 {[%clk 0:00:56]} 25... Bc3 {[%clk 0:00:50.7]} 26. Qd3 {[%clk
0:00:50.7]} 26... Qb4 {[%clk 0:00:42]} 27. Rc1 {[%clk 0:00:39]} 27... Bd4 {[%clk
0:00:34.4]} 28. Kg2 {[%clk 0:00:30.4]} 28... e5 {[%clk 0:00:32.4]} 29. Rc4
{[%clk 0:00:23.8]} 29... Qb2 {[%clk 0:00:29.8]} 30. Rc2 {[%clk 0:00:24]} 30...
Qb4 {[%clk 0:00:29.6]} 31. Bd5 {[%clk 0:00:23.9]} 31... Qxa4 {[%clk 0:00:27.4]}
32. Rc7 {[%clk 0:00:20.8]} 32... Bb6 {[%clk 0:00:17.3]} 33. Rc4 {[%clk
0:00:20.2]} 33... Qa1 {[%clk 0:00:16]} 34. Qf3 {[%clk 0:00:18.6]} 34... Kg7
{[%clk 0:00:14.6]} 35. Rc6 {[%clk 0:00:18.6]} 35... Qd4 {[%clk 0:00:14.5]} 36.
Qf6+ {[%clk 0:00:18.4]} 36... Kg8 {[%clk 0:00:14.8]} 37. Bxf7+ {[%clk
0:00:15.1]} 37... Rxf7 {[%clk 0:00:14.5]} 38. Rc8+ {[%clk 0:00:16]} 38... Bd8
{[%clk 0:00:13.6]} 39. Rxd8+ {[%clk 0:00:16.4]} 39... Qxd8 {[%clk 0:00:11.4]}
40. Qxd8+ {[%clk 0:00:17.3]} 40... Kg7 {[%clk 0:00:12.3]} 0-1

[Event "*** Titled Tuesday Blitz"]
[Site "Chess.com"]
[Date "2020.04.28"]
[Round "1"]
[White "Akhayan"]
[Black "agus_k"]
[Result "1/2-1/2"]
[WhiteElo "2295"]
[BlackElo "2603"]
[TimeControl "180+1"]
[EndTime "10:07:36 PDT"]
[Termination "Game drawn by repetition"]

1. d4 {[%clk 0:02:59.9]} 1... Nf6 {[%clk 0:02:59.2]} 2. Nf3 {[%clk 0:02:59.8]}
2... e6 {[%clk 0:02:59.1]} 3. g3 {[%clk 0:03:00.1]} 3... g6 {[%clk 0:02:58.5]}
4. Bg2 {[%clk 0:03:00.6]} 4... Bg7 {[%clk 0:02:59.4]} 5. O-O {[%clk 0:03:00.8]}
5... O-O {[%clk 0:02:57.7]} 6. c4 {[%clk 0:03:01.1]} 6... d6 {[%clk 0:02:55.8]}
7. Nc3 {[%clk 0:03:00.4]} 7... Nbd7 {[%clk 0:02:54.8]} 8. e4 {[%clk 0:02:58]}
8... h6 {[%clk 0:02:53.7]} 9. h3 {[%clk 0:02:56.3]} 9... e5 {[%clk 0:02:53.4]}
10. dxe5 {[%clk 0:02:49.3]} 10... dxe5 {[%clk 0:02:52]} 11. Nd5 {[%clk
0:02:34.4]} 11... c6 {[%clk 0:02:50.9]} 12. Nxf6+ {[%clk 0:02:33]} 12... Qxf6
{[%clk 0:02:49.4]} 13. b3 {[%clk 0:02:29.4]} 13... Rd8 {[%clk 0:02:47.3]} 14.
Qe2 {[%clk 0:02:27.1]} 14... Nc5 {[%clk 0:02:44.9]} 15. Bb2 {[%clk 0:02:25.3]}
15... Qe7 {[%clk 0:02:43.8]} 16. Ba3 {[%clk 0:02:24.6]} 16... b6 {[%clk
0:02:40.3]} 17. Rad1 {[%clk 0:02:23.5]} 17... Be6 {[%clk 0:02:37.9]} 18. Rxd8+
{[%clk 0:02:22.4]} 18... Rxd8 {[%clk 0:02:36.7]} 19. Rd1 {[%clk 0:02:22.6]}
19... Rd6 {[%clk 0:02:35.8]} 20. Bxc5 {[%clk 0:02:21]} 20... Rxd1+ {[%clk
0:02:33.5]} 21. Qxd1 {[%clk 0:02:20.1]} 21... Qxc5 {[%clk 0:02:34.4]} 22. Qd2
{[%clk 0:02:09.4]} 22... Bf8 {[%clk 0:02:31.9]} 23. Kh2 {[%clk 0:02:03.2]} 23...
Qd6 {[%clk 0:02:30]} 24. Qxd6 {[%clk 0:02:01.9]} 24... Bxd6 {[%clk 0:02:30.9]}
25. Ne1 {[%clk 0:01:56.6]} 25... Bc5 {[%clk 0:02:29.4]} 26. Nd3 {[%clk
0:01:55.9]} 26... Bd4 {[%clk 0:02:29.3]} 27. f4 {[%clk 0:01:53.6]} 27... f6
{[%clk 0:02:28.4]} 28. Bf3 {[%clk 0:01:46.5]} 28... b5 {[%clk 0:02:20.9]} 29.
cxb5 {[%clk 0:01:44]} 29... cxb5 {[%clk 0:02:21.8]} 30. Bg4 {[%clk 0:01:42.3]}
30... f5 {[%clk 0:02:20.3]} 31. Bf3 {[%clk 0:01:38.5]} 31... exf4 {[%clk
0:02:18.2]} 32. Nxf4 {[%clk 0:01:37.5]} 32... Bf7 {[%clk 0:02:05.6]} 33. exf5
{[%clk 0:01:37.2]} 33... g5 {[%clk 0:02:00]} 34. Ne6 {[%clk 0:01:33.8]} 34...
Be5 {[%clk 0:01:57.1]} 35. Be2 {[%clk 0:01:28.6]} 35... b4 {[%clk 0:01:55.5]}
36. Bc4 {[%clk 0:01:23]} 36... Kh8 {[%clk 0:01:54.7]} 37. Kg2 {[%clk 0:01:22.2]}
37... Be8 {[%clk 0:01:54]} 38. Bd5 {[%clk 0:01:21.4]} 38... Bb5 {[%clk
0:01:51.8]} 39. g4 {[%clk 0:01:19.1]} 39... Bd3 {[%clk 0:01:51]} 40. Nc5 {[%clk
0:01:13.1]} 40... Bb1 {[%clk 0:01:48.7]} 41. Nd7 {[%clk 0:01:13]} 41... Bd6
{[%clk 0:01:38.5]} 42. f6 {[%clk 0:01:12.5]} 42... Bxa2 {[%clk 0:01:35.2]} 43.
f7 {[%clk 0:01:11.8]} 43... Kg7 {[%clk 0:01:34.6]} 44. Kf3 {[%clk 0:00:58.7]}
44... Bb1 {[%clk 0:01:32.6]} 45. Ke3 {[%clk 0:00:49.2]} 45... Bg6 {[%clk
0:01:30.8]} 46. f8=Q+ {[%clk 0:00:43.5]} 46... Bxf8 {[%clk 0:01:30.3]} 47. Nxf8
{[%clk 0:00:43.4]} 47... Kxf8 {[%clk 0:01:31.2]} 48. Kd4 {[%clk 0:00:43.5]}
48... Be8 {[%clk 0:01:30.7]} 49. Kc5 {[%clk 0:00:43.3]} 49... a5 {[%clk
0:01:31.1]} 50. Kb6 {[%clk 0:00:40.3]} 50... a4 {[%clk 0:01:31.1]} 51. bxa4
{[%clk 0:00:40.2]} 51... Bxa4 {[%clk 0:01:29.6]} 52. Ka5 {[%clk 0:00:40.3]}
52... Bd1 {[%clk 0:01:18.8]} 53. Kxb4 {[%clk 0:00:40.1]} 53... Be2 {[%clk
0:01:19.7]} 54. Bg2 {[%clk 0:00:38.9]} 54... Ke7 {[%clk 0:01:18.8]} 55. Kc5
{[%clk 0:00:38.4]} 55... Ke6 {[%clk 0:01:18.4]} 56. Kd4 {[%clk 0:00:38.5]} 56...
Kf6 {[%clk 0:01:17.7]} 57. Ke3 {[%clk 0:00:38.4]} 57... Bd1 {[%clk 0:01:16.4]}
58. Kf2 {[%clk 0:00:38.5]} 58... Ke5 {[%clk 0:01:16]} 59. Kg3 {[%clk 0:00:39]}
59... Kd4 {[%clk 0:01:15.5]} 60. h4 {[%clk 0:00:39]} 60... Ke3 {[%clk
0:01:13.7]} 61. hxg5 {[%clk 0:00:39.1]} 61... hxg5 {[%clk 0:01:14.6]} 62. Bc6
{[%clk 0:00:39]} 62... Bc2 {[%clk 0:01:13.6]} 63. Bd7 {[%clk 0:00:38.9]} 63...
Be4 {[%clk 0:01:13.5]} 64. Bc8 {[%clk 0:00:38]} 64... Ke2 {[%clk 0:01:13]} 65.
Bd7 {[%clk 0:00:37.6]} 65... Kd3 {[%clk 0:01:12.7]} 66. Bf5 {[%clk 0:00:34.8]}
66... Kd4 {[%clk 0:01:13.6]} 67. Bxe4 {[%clk 0:00:29.3]} 67... Kxe4 {[%clk
0:01:14.5]} 68. Kg2 {[%clk 0:00:29.4]} 68... Ke3 {[%clk 0:01:14.7]} 69. Kg3
{[%clk 0:00:28.8]} 69... Ke2 {[%clk 0:01:14.1]} 70. Kg2 {[%clk 0:00:28.7]} 70...
Kd3 {[%clk 0:01:14.3]} 71. Kf3 {[%clk 0:00:28.5]} 71... Kd4 {[%clk 0:01:15.2]}
72. Kf2 {[%clk 0:00:27.9]} 72... Ke4 {[%clk 0:01:16.1]} 73. Kg2 {[%clk
0:00:26.5]} 73... Ke3 {[%clk 0:01:17]} 74. Kg3 {[%clk 0:00:26.4]} 74... Kd2
{[%clk 0:01:16.1]} 75. Kf2 {[%clk 0:00:25.8]} 75... Kd3 {[%clk 0:01:16.5]} 76.
Kf3 {[%clk 0:00:25.7]} 76... Kd4 {[%clk 0:01:16.4]} 77. Kf2 {[%clk 0:00:25.6]}
77... Ke4 {[%clk 0:01:16.5]} 78. Kg2 {[%clk 0:00:25]} 1/2-1/2

[Event "*** Titled Tuesday Blitz"]
[Site "Chess.com"]
[Date "2020.04.28"]
[Round "1"]
[White "Rumpel-VK"]
[Black "mfwagnerpeixoto"]
[Result "1-0"]
[WhiteElo "2526"]
[BlackElo "2146"]
[TimeControl "180+1"]
[EndTime "10:07:36 PDT"]
[Termination "Rumpel-VK won by resignation"]

1. e4 {[%clk 0:02:59.8]} 1... c5 {[%clk 0:02:58.8]} 2. g3 {[%clk 0:02:55.6]}
2... d6 {[%clk 0:02:59.7]} 3. Bg2 {[%clk 0:02:55.2]} 3... g6 {[%clk 0:02:58.7]}
4. d3 {[%clk 0:02:53.9]} 4... Bg7 {[%clk 0:02:59]} 5. f4 {[%clk 0:02:53.2]} 5...
Nc6 {[%clk 0:02:58.2]} 6. Nf3 {[%clk 0:02:53.1]} 6... Nf6 {[%clk 0:02:56.9]} 7.
O-O {[%clk 0:02:53]} 7... O-O {[%clk 0:02:57]} 8. c3 {[%clk 0:02:52.3]} 8... Bg4
{[%clk 0:02:56.8]} 9. h3 {[%clk 0:02:51.9]} 9... Bxf3 {[%clk 0:02:56.7]} 10.
Qxf3 {[%clk 0:02:51.6]} 10... Rb8 {[%clk 0:02:55.6]} 11. Kh2 {[%clk 0:02:49.2]}
11... e6 {[%clk 0:02:52.1]} 12. Be3 {[%clk 0:02:48.1]} 12... Qc7 {[%clk
0:02:46.8]} 13. Bg1 {[%clk 0:02:44.5]} 13... b5 {[%clk 0:02:38.2]} 14. e5 {[%clk
0:02:43.6]} 14... dxe5 {[%clk 0:02:39.1]} 15. Qxc6 {[%clk 0:02:42.8]} 15... Qxc6
{[%clk 0:02:38.7]} 16. Bxc6 {[%clk 0:02:42.4]} 16... exf4 {[%clk 0:02:38.7]} 17.
Bxc5 {[%clk 0:02:38.3]} 17... Rfd8 {[%clk 0:02:31.7]} 18. Rxf4 {[%clk
0:02:33.8]} 18... Nh5 {[%clk 0:02:29.4]} 19. Rf3 {[%clk 0:02:27.7]} 19... b4
{[%clk 0:02:26.7]} 20. d4 {[%clk 0:02:17.9]} 20... bxc3 {[%clk 0:02:26.3]} 21.
bxc3 {[%clk 0:02:16.3]} 21... Rb2+ {[%clk 0:02:25.3]} 22. Kg1 {[%clk 0:02:11.3]}
22... Rc8 {[%clk 0:02:12.8]} 23. Be4 {[%clk 0:02:07.2]} 23... f5 {[%clk
0:02:05.3]} 24. Bd3 {[%clk 0:02:04.9]} 24... Nf6 {[%clk 0:01:58.7]} 25. Na3
{[%clk 0:02:03.7]} 25... Nd5 {[%clk 0:01:54.4]} 26. Nc4 {[%clk 0:02:02]} 26...
Rbb8 {[%clk 0:01:46.4]} 27. Nd6 {[%clk 0:02:01.4]} 27... Rc7 {[%clk 0:01:33.1]}
28. Bc4 {[%clk 0:01:57.1]} 28... Nxc3 {[%clk 0:01:26.3]} 29. Rxc3 {[%clk
0:01:51.6]} 29... Rxc5 {[%clk 0:01:21.6]} 30. Bxe6+ {[%clk 0:01:49.9]} 30... Kf8
{[%clk 0:01:21.2]} 31. dxc5 {[%clk 0:01:45.9]} 31... Bxc3 {[%clk 0:01:20.2]} 32.
Rc1 {[%clk 0:01:43.7]} 32... Bd4+ {[%clk 0:01:16.1]} 33. Kh1 {[%clk 0:01:43.3]}
33... Ke7 {[%clk 0:01:12.4]} 34. Bxf5 {[%clk 0:01:39.9]} 34... Bxc5 {[%clk
0:00:43.3]} 35. Nc8+ {[%clk 0:01:36]} 35... Kf6 {[%clk 0:00:42.8]} 36. Rxc5
{[%clk 0:01:33.6]} 36... gxf5 {[%clk 0:00:42.2]} 37. Nxa7 {[%clk 0:01:32.1]}
37... Rb1+ {[%clk 0:00:35.7]} 38. Kg2 {[%clk 0:01:31.6]} 38... Rb2+ {[%clk
0:00:36.2]} 39. Kf3 {[%clk 0:01:31.2]} 39... Rxa2 {[%clk 0:00:37.1]} 40. Nb5
{[%clk 0:01:28.3]} 40... Ra4 {[%clk 0:00:30.3]} 41. Nd6 {[%clk 0:01:23]} 41...
Ra3+ {[%clk 0:00:27.4]} 42. Kf4 {[%clk 0:01:22.5]} 42... Ra4+ {[%clk 0:00:26.9]}
43. Nc4 {[%clk 0:01:21.7]} 43... Ke6 {[%clk 0:00:22.2]} 44. Re5+ {[%clk
0:01:18]} 44... Kd7 {[%clk 0:00:18.9]} 45. Rc5 {[%clk 0:01:15.1]} 45... Ke6
{[%clk 0:00:17.9]} 46. h4 {[%clk 0:01:13.6]} 46... h6 {[%clk 0:00:17.6]} 47.
Re5+ {[%clk 0:01:13.1]} 47... Kd7 {[%clk 0:00:16.6]} 48. Rc5 {[%clk 0:01:12.8]}
48... Ke6 {[%clk 0:00:16.4]} 49. Re5+ {[%clk 0:01:06.3]} 49... Kd7 {[%clk
0:00:15.8]} 50. Rd5+ {[%clk 0:01:06.4]} 50... Ke6 {[%clk 0:00:15.9]} 51. Rd6+
{[%clk 0:01:05]} 51... Ke7 {[%clk 0:00:14.9]} 52. Rxh6 {[%clk 0:01:03.9]} 52...
Rxc4+ {[%clk 0:00:13.6]} 53. Kxf5 {[%clk 0:01:03.6]} 53... Rc5+ {[%clk
0:00:13.8]} 54. Kg4 {[%clk 0:01:02.7]} 54... Kf7 {[%clk 0:00:13.3]} 55. Ra6
{[%clk 0:01:00.6]} 55... Rd5 {[%clk 0:00:12]} 56. h5 {[%clk 0:00:59.6]} 56...
Kg7 {[%clk 0:00:11.8]} 57. Kh4 {[%clk 0:00:59]} 57... Rd2 {[%clk 0:00:09.8]} 58.
g4 {[%clk 0:00:58.2]} 58... Rd5 {[%clk 0:00:10.3]} 59. Ra7+ {[%clk 0:00:57.1]}
59... Kh6 {[%clk 0:00:09.4]} 60. g5+ {[%clk 0:00:56.5]} 60... Rxg5 {[%clk
0:00:08.5]} 61. Ra6+ {[%clk 0:00:55.9]} 1-0

[Event "*** Titled Tuesday Blitz"]
[Site "Chess.com"]
[Date "2020.04.28"]
[Round "1"]
[White "aliba25"]
[Black "ulkaf961"]
[Result "0-1"]
[WhiteElo "2508"]
[BlackElo "2185"]
[TimeControl "180+1"]
[EndTime "10:07:37 PDT"]
[Termination "ulkaf961 won by checkmate"]

1. Nf3 {[%clk 0:02:56.9]} 1... d5 {[%clk 0:02:58.8]} 2. c4 {[%clk 0:02:54.7]}
2... dxc4 {[%clk 0:02:53.3]} 3. e3 {[%clk 0:02:54.1]} 3... Nf6 {[%clk
0:02:46.3]} 4. Bxc4 {[%clk 0:02:53.8]} 4... e6 {[%clk 0:02:46.6]} 5. O-O {[%clk
0:02:53.6]} 5... Bd6 {[%clk 0:02:46.7]} 6. d4 {[%clk 0:02:53]} 6... O-O {[%clk
0:02:39.8]} 7. Nc3 {[%clk 0:02:52.7]} 7... c5 {[%clk 0:02:23.9]} 8. Nb5 {[%clk
0:02:36.1]} 8... Be7 {[%clk 0:02:22.5]} 9. dxc5 {[%clk 0:02:35.9]} 9... Nc6
{[%clk 0:02:09.2]} 10. Nd6 {[%clk 0:02:29.8]} 10... Qc7 {[%clk 0:02:01.2]} 11.
a3 {[%clk 0:01:56.8]} 11... Rd8 {[%clk 0:02:00.7]} 12. b4 {[%clk 0:01:53.5]}
12... Bxd6 {[%clk 0:01:59.4]} 13. cxd6 {[%clk 0:01:53.7]} 13... Rxd6 {[%clk
0:01:59.6]} 14. Qb3 {[%clk 0:01:53.4]} 14... b6 {[%clk 0:01:42.8]} 15. Bb2
{[%clk 0:01:52.6]} 15... Qe7 {[%clk 0:01:41.4]} 16. Rfd1 {[%clk 0:01:46.4]}
16... Rxd1+ {[%clk 0:01:40.3]} 17. Rxd1 {[%clk 0:01:46]} 17... Bb7 {[%clk
0:01:41]} 18. Qc3 {[%clk 0:01:37.1]} 18... Rc8 {[%clk 0:01:35.7]} 19. Ng5 {[%clk
0:01:28.9]} 19... Nb8 {[%clk 0:00:53.2]} 20. Qd3 {[%clk 0:01:10.2]} 20... Nbd7
{[%clk 0:00:38.6]} 21. Bb5 {[%clk 0:01:04.6]} 21... Nf8 {[%clk 0:00:25.9]} 22.
h3 {[%clk 0:00:49.7]} 22... h6 {[%clk 0:00:26.1]} 23. Bxf6 {[%clk 0:00:41.6]}
23... Qxf6 {[%clk 0:00:25.6]} 24. Ne4 {[%clk 0:00:42.2]} 24... Qe5 {[%clk
0:00:13.5]} 25. Nd6 {[%clk 0:00:37.4]} 25... Rd8 {[%clk 0:00:13.7]} 26. f4
{[%clk 0:00:33.4]} 26... Qf6 {[%clk 0:00:13.7]} 27. Ba4 {[%clk 0:00:25.1]} 27...
Bd5 {[%clk 0:00:13.6]} 28. Ne4 {[%clk 0:00:21.2]} 28... Qg6 {[%clk 0:00:13.9]}
29. Rd2 {[%clk 0:00:13.5]} 29... Bxe4 {[%clk 0:00:13.7]} 30. Qxd8 {[%clk
0:00:13.5]} 30... Qg3 {[%clk 0:00:11.9]} 31. Qd4 {[%clk 0:00:10.5]} 31... f5
{[%clk 0:00:10.9]} 32. Rf2 {[%clk 0:00:05.7]} 32... Ng6 {[%clk 0:00:09.7]} 33.
Bb3 {[%clk 0:00:04.1]} 33... Nh4 {[%clk 0:00:09.4]} 34. Bxe6+ {[%clk 0:00:04.4]}
34... Kh7 {[%clk 0:00:09.9]} 35. Qd2 {[%clk 0:00:03.5]} 35... Bxg2 {[%clk
0:00:05.7]} 36. Rxg2 {[%clk 0:00:01.7]} 36... Nf3+ {[%clk 0:00:05.8]} 37. Kh1
{[%clk 0:00:02.5]} 37... Qxh3+ {[%clk 0:00:06.2]} 38. Rh2 {[%clk 0:00:02.7]}
38... Qf1# {[%clk 0:00:06.3]} 0-1

[Event "*** Titled Tuesday Blitz"]
[Site "Chess.com"]
[Date "2020.04.28"]
[Round "1"]
[White "garicradomir"]
[Black "ElHelvetico"]
[Result "0-1"]
[WhiteElo "2324"]
[BlackElo "2648"]
[TimeControl "180+1"]
[EndTime "10:07:38 PDT"]
[Termination "ElHelvetico won on time"]

1. e4 {[%clk 0:02:58.3]} 1... c5 {[%clk 0:02:59.5]} 2. Nf3 {[%clk 0:02:58.2]}
2... d6 {[%clk 0:02:57.6]} 3. Be2 {[%clk 0:02:58.3]} 3... Nf6 {[%clk 0:02:57.2]}
4. c3 {[%clk 0:02:58.4]} 4... Nbd7 {[%clk 0:02:55.3]} 5. d3 {[%clk 0:02:57.5]}
5... g6 {[%clk 0:02:54.2]} 6. O-O {[%clk 0:02:57.3]} 6... Bg7 {[%clk 0:02:51.1]}
7. a3 {[%clk 0:02:57]} 7... b6 {[%clk 0:02:51.1]} 8. b4 {[%clk 0:02:53.4]} 8...
Bb7 {[%clk 0:02:51.4]} 9. Bb2 {[%clk 0:02:52.4]} 9... O-O {[%clk 0:02:50.7]} 10.
Nbd2 {[%clk 0:02:52.5]} 10... e6 {[%clk 0:02:49]} 11. Re1 {[%clk 0:02:51.8]}
11... Qe7 {[%clk 0:02:48.9]} 12. Nc4 {[%clk 0:02:51.4]} 12... Rfd8 {[%clk
0:02:41.7]} 13. Qc2 {[%clk 0:02:36.5]} 13... d5 {[%clk 0:02:38.2]} 14. Ncd2
{[%clk 0:02:28]} 14... Rac8 {[%clk 0:02:32.3]} 15. Rac1 {[%clk 0:01:55.4]} 15...
a5 {[%clk 0:02:17.8]} 16. bxa5 {[%clk 0:01:51.1]} 16... bxa5 {[%clk 0:02:18.7]}
17. h3 {[%clk 0:01:43.9]} 17... Ba6 {[%clk 0:01:55.7]} 18. e5 {[%clk 0:01:38.4]}
18... Ne8 {[%clk 0:01:43.4]} 19. Bf1 {[%clk 0:01:38.6]} 19... Rb8 {[%clk
0:01:40.2]} 20. Ba1 {[%clk 0:01:38.8]} 20... Nc7 {[%clk 0:01:33.7]} 21. c4
{[%clk 0:01:35.9]} 21... d4 {[%clk 0:01:27.4]} 22. h4 {[%clk 0:01:27]} 22... Bb7
{[%clk 0:01:27.1]} 23. Rb1 {[%clk 0:01:23]} 23... Bc6 {[%clk 0:01:26]} 24. g3
{[%clk 0:00:58.7]} 24... Qe8 {[%clk 0:01:06.4]} 25. Bg2 {[%clk 0:00:57]} 25...
Rxb1 {[%clk 0:01:04.2]} 26. Nxb1 {[%clk 0:00:50.9]} 26... Rb8 {[%clk 0:01:03.1]}
27. Nbd2 {[%clk 0:00:42.2]} 27... Qc8 {[%clk 0:00:59.2]} 28. Ne4 {[%clk
0:00:28]} 28... Bxe4 {[%clk 0:00:56.4]} 29. Rxe4 {[%clk 0:00:28]} 29... Qb7
{[%clk 0:00:56.2]} 30. Bxd4 {[%clk 0:00:23.1]} 30... cxd4 {[%clk 0:00:54.9]} 31.
Rxd4 {[%clk 0:00:23.4]} 31... Nc5 {[%clk 0:00:49.3]} 32. Ng5 {[%clk 0:00:15.8]}
32... Qb1+ {[%clk 0:00:48.5]} 33. Qxb1 {[%clk 0:00:14.5]} 33... Rxb1+ {[%clk
0:00:49.4]} 34. Kh2 {[%clk 0:00:15.4]} 34... Bxe5 {[%clk 0:00:47.4]} 35. Rd8+
{[%clk 0:00:15.2]} 35... Kg7 {[%clk 0:00:47.9]} 36. f4 {[%clk 0:00:14.5]} 36...
Bf6 {[%clk 0:00:41.7]} 37. Rc8 {[%clk 0:00:14.8]} 37... N7a6 {[%clk 0:00:38.2]}
38. Ne4 {[%clk 0:00:15.1]} 38... Nxd3 {[%clk 0:00:35.6]} 39. Ra8 {[%clk
0:00:09.2]} 39... Nac5 {[%clk 0:00:35.2]} 40. Nd6 {[%clk 0:00:08]} 40... Bd4
{[%clk 0:00:32.2]} 41. Ne8+ {[%clk 0:00:07.6]} 41... Kh6 {[%clk 0:00:32.1]} 42.
g4 {[%clk 0:00:08]} 42... Nxf4 {[%clk 0:00:25.9]} 43. Kg3 {[%clk 0:00:05.4]}
43... Nxg2 {[%clk 0:00:25.1]} 44. g5+ {[%clk 0:00:05.1]} 44... Kh5 {[%clk
0:00:24.7]} 45. Nf6+ {[%clk 0:00:02.3]} 45... Bxf6 {[%clk 0:00:24.6]} 46. gxf6
{[%clk 0:00:01.8]} 46... Nxh4 {[%clk 0:00:24.7]} 47. Rh8 {[%clk 0:00:02.4]}
47... Nf5+ {[%clk 0:00:23.9]} 48. Kf4 {[%clk 0:00:02.6]} 48... h6 {[%clk
0:00:23.6]} 0-1

[Event "*** Titled Tuesday Blitz"]
[Site "Chess.com"]
[Date "2020.04.28"]
[Round "1"]
[White "mikolka1985"]
[Black "Batsai"]
[Result "1-0"]
[WhiteElo "2571"]
[BlackElo "2229"]
[TimeControl "180+1"]
[EndTime "10:07:38 PDT"]
[Termination "mikolka1985 won by resignation"]

1. d4 {[%clk 0:02:56.9]} 1... Nf6 {[%clk 0:02:57.9]} 2. c4 {[%clk 0:02:56.1]}
2... e6 {[%clk 0:02:58.2]} 3. Nf3 {[%clk 0:02:49.4]} 3... d5 {[%clk 0:02:56.1]}
4. Nc3 {[%clk 0:02:45.7]} 4... dxc4 {[%clk 0:02:52.3]} 5. e3 {[%clk 0:02:44.3]}
5... a6 {[%clk 0:02:49.5]} 6. Bxc4 {[%clk 0:02:42.4]} 6... b5 {[%clk 0:02:49.2]}
7. Bb3 {[%clk 0:02:40.1]} 7... Bb7 {[%clk 0:02:44.3]} 8. O-O {[%clk 0:02:40.2]}
8... Nbd7 {[%clk 0:02:41.9]} 9. Qe2 {[%clk 0:02:38.6]} 9... c5 {[%clk
0:02:39.8]} 10. Rd1 {[%clk 0:02:37.4]} 10... Qb6 {[%clk 0:02:33.4]} 11. e4
{[%clk 0:02:24.5]} 11... cxd4 {[%clk 0:02:19.8]} 12. Nxd4 {[%clk 0:02:23.2]}
12... Bc5 {[%clk 0:02:19.1]} 13. Be3 {[%clk 0:02:03.8]} 13... O-O {[%clk
0:02:15.9]} 14. f3 {[%clk 0:02:02.9]} 14... Rfd8 {[%clk 0:02:09.9]} 15. Nc2
{[%clk 0:01:54.1]} 15... Ne5 {[%clk 0:01:55.9]} 16. Bxc5 {[%clk 0:01:51.4]}
16... Qxc5+ {[%clk 0:01:55.4]} 17. Qe3 {[%clk 0:01:51.9]} 17... Qxe3+ {[%clk
0:01:36.1]} 18. Nxe3 {[%clk 0:01:50.5]} 18... g5 {[%clk 0:01:30.4]} 19. Ne2
{[%clk 0:01:47.3]} 19... Nd3 {[%clk 0:01:26]} 20. Rd2 {[%clk 0:01:45.5]} 20...
Nc5 {[%clk 0:01:24.2]} 21. Rad1 {[%clk 0:01:44.3]} 21... Rxd2 {[%clk 0:01:19.1]}
22. Rxd2 {[%clk 0:01:44]} 22... Kf8 {[%clk 0:01:19.1]} 23. Bc2 {[%clk
0:01:34.8]} 23... Nfd7 {[%clk 0:01:09.8]} 24. b4 {[%clk 0:01:31.3]} 24... Ke7
{[%clk 0:01:09.2]} 25. bxc5 {[%clk 0:01:30.4]} 25... Nxc5 {[%clk 0:01:10.1]} 26.
Bb3 {[%clk 0:01:29]} 26... a5 {[%clk 0:01:08.5]} 27. Rc2 {[%clk 0:01:27.3]}
27... Na6 {[%clk 0:01:05]} 28. Rc1 {[%clk 0:01:24.1]} 28... a4 {[%clk
0:01:04.6]} 29. Bd1 {[%clk 0:01:21.2]} 29... Nb4 {[%clk 0:01:01.4]} 30. Rb1
{[%clk 0:01:16]} 30... Nxa2 {[%clk 0:00:57.9]} 31. Rxb5 {[%clk 0:01:15.1]} 31...
Bc6 {[%clk 0:00:58.8]} 32. Rb6 {[%clk 0:01:13.8]} 32... Kd6 {[%clk 0:00:52.3]}
33. Nd4 {[%clk 0:01:12.3]} 33... Kc5 {[%clk 0:00:50.2]} 34. Rxc6+ {[%clk
0:01:11.1]} 34... Kxd4 {[%clk 0:00:47.9]} 35. Kf2 {[%clk 0:01:04.9]} 35... Nc3
{[%clk 0:00:30.7]} 36. Bc2 {[%clk 0:01:03]} 36... a3 {[%clk 0:00:23.4]} 37. Bb3
{[%clk 0:00:33.6]} 37... a2 {[%clk 0:00:21]} 38. Nc2+ {[%clk 0:00:32.5]} 38...
Kd3 {[%clk 0:00:14.3]} 39. Rd6+ {[%clk 0:00:27.4]} 39... Nd5 {[%clk 0:00:11.3]}
40. exd5 {[%clk 0:00:25.7]} 40... Kc3 {[%clk 0:00:11.5]} 41. Na1 {[%clk
0:00:22.6]} 41... Kb2 {[%clk 0:00:10.9]} 42. dxe6 {[%clk 0:00:22.4]} 42... fxe6
{[%clk 0:00:05.1]} 43. Rd1 {[%clk 0:00:21.2]} 43... Rb8 {[%clk 0:00:04.9]} 44.
Bxe6 {[%clk 0:00:20.2]} 44... Kc3 {[%clk 0:00:05]} 45. Bf5 {[%clk 0:00:18.7]}
45... Rb2+ {[%clk 0:00:03.8]} 1-0